[Event "*** SCC Grand Prix: Titled Tuesday Blitz"]
[Site "Chess.com"]
[Date "2020.09.08"]
[Round "9"]
[White "gui_borba"]
[Black "kingnb"]
[Result "0-1"]
[WhiteElo "2425"]
[BlackElo "2628"]
[TimeControl "180+1"]
[EndTime "11:42:30 PDT"]
[Termination "kingnb won by checkmate"]

1. e4 {[%clk 0:03:00.9]} 1... d5 {[%clk 0:02:59.7]} 2. exd5 {[%clk 0:03:00.8]}
2... Nf6 {[%clk 0:03:00.6]} 3. d4 {[%clk 0:03:00.9]} 3... Bg4 {[%clk 0:02:59.5]}
4. f3 {[%clk 0:02:58.2]} 4... Bf5 {[%clk 0:02:59.4]} 5. c4 {[%clk 0:02:50.7]}
5... e6 {[%clk 0:02:58.6]} 6. dxe6 {[%clk 0:02:48.2]} 6... Nc6 {[%clk 0:02:57]}
7. exf7+ {[%clk 0:02:39.7]} 7... Kxf7 {[%clk 0:02:57.9]} 8. Be3 {[%clk
0:02:39.5]} 8... Bb4+ {[%clk 0:02:57.6]} 9. Kf2 {[%clk 0:02:39.4]} 9... Re8
{[%clk 0:02:58.5]} 10. Nc3 {[%clk 0:02:36.1]} 10... Rxe3 {[%clk 0:02:34.5]} 11.
Kxe3 {[%clk 0:02:37]} 11... Nxd4 {[%clk 0:02:34.5]} 12. Qxd4 {[%clk 0:01:49.5]}
12... Qe7+ {[%clk 0:02:32.8]} 13. Kf4 {[%clk 0:01:49.8]} 13... Bd6+ {[%clk
0:02:30.7]} 14. Kxf5 {[%clk 0:01:42.9]} 14... g6+ {[%clk 0:02:30.7]} 15. Kg5
{[%clk 0:01:40.1]} 15... Ne4+ {[%clk 0:02:30.6]} 16. Kg4 {[%clk 0:01:28.9]}
16... Qg5+ {[%clk 0:02:31.5]} 17. Kh3 {[%clk 0:01:27.8]} 17... Qh5# {[%clk
0:02:32.4]} 0-1

[Event "*** SCC Grand Prix: Titled Tuesday Blitz"]
[Site "Chess.com"]
[Date "2020.09.08"]
[Round "9"]
[White "Mikheev1976"]
[Black "GregShahade"]
[Result "0-1"]
[WhiteElo "2413"]
[BlackElo "2614"]
[TimeControl "180+1"]
[EndTime "11:44:26 PDT"]
[Termination "GregShahade won by resignation"]

1. d4 {[%clk 0:02:41.7]} 1... Nf6 {[%clk 0:02:59.5]} 2. c4 {[%clk 0:02:41.3]}
2... g6 {[%clk 0:03:00]} 3. Nf3 {[%clk 0:02:41.6]} 3... Bg7 {[%clk 0:03:00.1]}
4. Nc3 {[%clk 0:02:42.2]} 4... d5 {[%clk 0:03:00.4]} 5. cxd5 {[%clk 0:02:41.1]}
5... Nxd5 {[%clk 0:03:01.3]} 6. e4 {[%clk 0:02:41.8]} 6... Nxc3 {[%clk
0:03:01.7]} 7. bxc3 {[%clk 0:02:42.7]} 7... c5 {[%clk 0:03:01.8]} 8. Be3 {[%clk
0:02:43.6]} 8... Bg4 {[%clk 0:03:01]} 9. Be2 {[%clk 0:02:30.3]} 9... Nc6 {[%clk
0:02:59.4]} 10. e5 {[%clk 0:01:53.8]} 10... O-O {[%clk 0:02:58.5]} 11. O-O
{[%clk 0:01:51]} 11... Rc8 {[%clk 0:02:52.9]} 12. Rb1 {[%clk 0:01:30.9]} 12...
Qd7 {[%clk 0:02:48]} 13. d5 {[%clk 0:01:27.3]} 13... Bxf3 {[%clk 0:02:40.9]} 14.
dxc6 {[%clk 0:01:21.6]} 14... Qxd1 {[%clk 0:02:31.9]} 15. Bxd1 {[%clk
0:01:22.5]} 15... Bxc6 {[%clk 0:02:25.7]} 16. Bxc5 {[%clk 0:01:22.4]} 16... Be4
{[%clk 0:02:09.9]} 17. Bxe7 {[%clk 0:01:07.9]} 17... Bxb1 {[%clk 0:02:06]} 18.
Bxf8 {[%clk 0:01:06.8]} 18... Kxf8 {[%clk 0:02:00.4]} 19. Bg4 {[%clk 0:01:05.4]}
19... Bf5 {[%clk 0:01:59]} 20. Bxf5 {[%clk 0:00:55.6]} 20... gxf5 {[%clk
0:01:59.6]} 21. f4 {[%clk 0:00:50.7]} 21... Rxc3 {[%clk 0:01:59.3]} 22. Rb1
{[%clk 0:00:51.2]} 22... b6 {[%clk 0:01:53.1]} 23. Rb4 {[%clk 0:00:50.5]} 23...
Ke8 {[%clk 0:01:49.3]} 24. Ra4 {[%clk 0:00:49.2]} 24... a5 {[%clk 0:01:48.8]}
25. Kf2 {[%clk 0:00:47.4]} 25... Bf8 {[%clk 0:01:47]} 26. Ke2 {[%clk 0:00:44.3]}
26... Bb4 {[%clk 0:01:46.3]} 0-1

[Event "*** SCC Grand Prix: Titled Tuesday Blitz"]
[Site "Chess.com"]
[Date "2020.09.08"]
[Round "9"]
[White "Funo09"]
[Black "KaterynaLagno"]
[Result "1-0"]
[WhiteElo "2853"]
[BlackElo "2700"]
[TimeControl "180+1"]
[EndTime "11:44:29 PDT"]
[Termination "Funo09 won by resignation"]

1. e4 {[%clk 0:03:00.9]} 1... e5 {[%clk 0:02:59.5]} 2. Nf3 {[%clk 0:03:01.1]}
2... Nc6 {[%clk 0:03:00]} 3. Bb5 {[%clk 0:03:01.6]} 3... g6 {[%clk 0:03:00.3]}
4. O-O {[%clk 0:02:59.7]} 4... Bg7 {[%clk 0:03:00.3]} 5. Re1 {[%clk 0:02:59.9]}
5... Nge7 {[%clk 0:02:57.2]} 6. c3 {[%clk 0:02:58.8]} 6... a6 {[%clk 0:02:55.6]}
7. Ba4 {[%clk 0:02:58.7]} 7... b5 {[%clk 0:02:46.9]} 8. Bb3 {[%clk 0:02:58.5]}
8... d6 {[%clk 0:02:46.6]} 9. a4 {[%clk 0:02:58.7]} 9... Rb8 {[%clk 0:02:39.8]}
10. axb5 {[%clk 0:02:57.5]} 10... axb5 {[%clk 0:02:40.7]} 11. d4 {[%clk
0:02:57.9]} 11... exd4 {[%clk 0:02:32.4]} 12. cxd4 {[%clk 0:02:58.8]} 12... Bg4
{[%clk 0:02:32.4]} 13. Bxf7+ {[%clk 0:02:55.4]} 13... Kf8 {[%clk 0:02:25.7]} 14.
Be3 {[%clk 0:02:52.6]} 14... h6 {[%clk 0:01:15.5]} 15. h3 {[%clk 0:02:48.8]}
15... Bh5 {[%clk 0:01:11.3]} 16. Be6 {[%clk 0:02:48.2]} 16... g5 {[%clk
0:01:10.5]} 17. Nc3 {[%clk 0:02:45]} 17... b4 {[%clk 0:01:04.2]} 18. Nd5 {[%clk
0:02:43.5]} 18... Nxd5 {[%clk 0:01:04.1]} 19. exd5 {[%clk 0:02:42]} 19... Ne7
{[%clk 0:01:04.2]} 20. Ra7 {[%clk 0:02:26.7]} 20... Ra8 {[%clk 0:00:59.9]} 21.
Qa4 {[%clk 0:02:22.4]} 21... Rxa7 {[%clk 0:00:57.2]} 22. Qxa7 {[%clk 0:02:23.3]}
22... Bf6 {[%clk 0:00:56.7]} 23. Rc1 {[%clk 0:02:17.6]} 23... Kg7 {[%clk
0:00:41.2]} 24. Rxc7 {[%clk 0:02:17.9]} 24... Bg6 {[%clk 0:00:35.6]} 25. Ne5
{[%clk 0:02:15.1]} 25... dxe5 {[%clk 0:00:30.2]} 26. dxe5 {[%clk 0:02:15.3]}
26... Bxe5 {[%clk 0:00:10.1]} 27. Rxe7+ {[%clk 0:02:15.4]} 27... Kf6 {[%clk
0:00:10.7]} 28. Rf7+ {[%clk 0:02:15.6]} 1-0

[Event "*** SCC Grand Prix: Titled Tuesday Blitz"]
[Site "Chess.com"]
[Date "2020.09.08"]
[Round "9"]
[White "LedakovAlexandr"]
[Black "azikom"]
[Result "0-1"]
[WhiteElo "2454"]
[BlackElo "2641"]
[TimeControl "180+1"]
[EndTime "11:44:32 PDT"]
[Termination "azikom won by resignation"]

1. Nf3 {[%clk 0:03:00.9]} 1... c5 {[%clk 0:02:59.3]} 2. c3 {[%clk 0:02:55.7]}
2... Nf6 {[%clk 0:02:56.1]} 3. d4 {[%clk 0:02:56.6]} 3... b6 {[%clk 0:02:55.8]}
4. Bg5 {[%clk 0:02:56.1]} 4... Bb7 {[%clk 0:02:56]} 5. Nbd2 {[%clk 0:02:54.5]}
5... e6 {[%clk 0:02:55.2]} 6. e3 {[%clk 0:02:54.6]} 6... Be7 {[%clk 0:02:54.8]}
7. Bd3 {[%clk 0:02:55]} 7... h6 {[%clk 0:02:55.2]} 8. Bxf6 {[%clk 0:02:52.3]}
8... Bxf6 {[%clk 0:02:54.9]} 9. Qe2 {[%clk 0:02:53.2]} 9... Nc6 {[%clk 0:02:51]}
10. O-O-O {[%clk 0:02:52.1]} 10... d5 {[%clk 0:02:47.2]} 11. Ba6 {[%clk
0:02:47.6]} 11... Bxa6 {[%clk 0:02:46.3]} 12. Qxa6 {[%clk 0:02:48.5]} 12... O-O
{[%clk 0:02:45.7]} 13. dxc5 {[%clk 0:02:43.4]} 13... Qc7 {[%clk 0:02:42.3]} 14.
Nb3 {[%clk 0:02:29.9]} 14... Rfc8 {[%clk 0:02:30.3]} 15. Nfd4 {[%clk 0:02:12.3]}
15... bxc5 {[%clk 0:02:27]} 16. Nxc5 {[%clk 0:01:53.9]} 16... Ne5 {[%clk
0:02:17.5]} 17. Ndb3 {[%clk 0:01:20.5]} 17... Rab8 {[%clk 0:02:15.9]} 18. Qa4
{[%clk 0:01:05.2]} 18... Nc4 {[%clk 0:02:10.7]} 19. Na6 {[%clk 0:01:00.7]} 19...
Nxb2 {[%clk 0:02:07.9]} 20. Nxc7 {[%clk 0:00:52.4]} 20... Nxa4 {[%clk
0:02:07.1]} 21. Na6 {[%clk 0:00:37]} 21... Rb6 {[%clk 0:02:03.9]} 0-1

[Event "*** SCC Grand Prix: Titled Tuesday Blitz"]
[Site "Chess.com"]
[Date "2020.09.08"]
[Round "9"]
[White "mr_gustavo"]
[Black "PotapovaM"]
[Result "1-0"]
[WhiteElo "2281"]
[BlackElo "2474"]
[TimeControl "180+1"]
[EndTime "11:44:40 PDT"]
[Termination "mr_gustavo won by checkmate"]

1. e4 {[%clk 0:03:00.9]} 1... c5 {[%clk 0:02:59.8]} 2. Nf3 {[%clk 0:02:56.5]}
2... d6 {[%clk 0:03:00.3]} 3. d4 {[%clk 0:02:56.2]} 3... cxd4 {[%clk 0:03:01.2]}
4. Nxd4 {[%clk 0:02:57.1]} 4... Nf6 {[%clk 0:03:02.1]} 5. Nc3 {[%clk 0:02:57.3]}
5... a6 {[%clk 0:03:02.7]} 6. Bg5 {[%clk 0:02:56.6]} 6... e6 {[%clk 0:03:02.7]}
7. f4 {[%clk 0:02:56.8]} 7... h6 {[%clk 0:03:02.1]} 8. Bh4 {[%clk 0:02:56.6]}
8... Qb6 {[%clk 0:03:01.6]} 9. a3 {[%clk 0:02:54.3]} 9... Be7 {[%clk 0:03:01.1]}
10. Bf2 {[%clk 0:02:52.1]} 10... Qc7 {[%clk 0:03:01.2]} 11. Qf3 {[%clk 0:02:49]}
11... b5 {[%clk 0:03:01.4]} 12. Bd3 {[%clk 0:02:47.3]} 12... Bb7 {[%clk
0:03:01.4]} 13. O-O {[%clk 0:02:45]} 13... Nbd7 {[%clk 0:03:00.2]} 14. Qg3
{[%clk 0:02:44.6]} 14... g5 {[%clk 0:02:51.7]} 15. fxg5 {[%clk 0:02:33.5]} 15...
hxg5 {[%clk 0:02:51.3]} 16. Rae1 {[%clk 0:02:32.6]} 16... O-O-O {[%clk
0:02:48.3]} 17. Qxg5 {[%clk 0:02:11.8]} 17... Nxe4 {[%clk 0:02:35.9]} 18. Qxe7
{[%clk 0:02:03.4]} 18... Nxf2 {[%clk 0:02:28.5]} 19. Rxf2 {[%clk 0:02:00.3]}
19... d5 {[%clk 0:02:28.5]} 20. Nf3 {[%clk 0:01:55.1]} 20... d4 {[%clk
0:02:27.5]} 21. Ne4 {[%clk 0:01:53.1]} 21... Bd5 {[%clk 0:02:24.2]} 22. Nd6+
{[%clk 0:01:50.6]} 22... Kb8 {[%clk 0:02:24.5]} 23. Nxf7 {[%clk 0:01:51.5]}
23... Rde8 {[%clk 0:02:22.8]} 24. Qd6 {[%clk 0:01:49.3]} 24... Rhf8 {[%clk
0:02:22.4]} 25. Qxc7+ {[%clk 0:01:48.3]} 25... Kxc7 {[%clk 0:02:23.3]} 26. N7e5
{[%clk 0:01:48.5]} 26... Nc5 {[%clk 0:02:22.3]} 27. Bg6 {[%clk 0:01:43.9]} 27...
Re7 {[%clk 0:02:21.5]} 28. Nxd4 {[%clk 0:01:42.1]} 28... Rg8 {[%clk 0:02:20.8]}
29. Ndf3 {[%clk 0:01:33.6]} 29... Kd6 {[%clk 0:02:13.7]} 30. Bd3 {[%clk
0:01:24.9]} 30... Reg7 {[%clk 0:02:12]} 31. Bf1 {[%clk 0:01:20]} 31... Na4
{[%clk 0:02:10.3]} 32. c4 {[%clk 0:01:15.1]} 32... bxc4 {[%clk 0:02:10.1]} 33.
Nxc4+ {[%clk 0:01:14.1]} 33... Ke7 {[%clk 0:02:10]} 34. Nfe5 {[%clk 0:01:11.6]}
34... Nc5 {[%clk 0:02:05.4]} 35. b4 {[%clk 0:01:08.4]} 35... Ne4 {[%clk
0:02:05.3]} 36. Rc2 {[%clk 0:01:03]} 36... Ng5 {[%clk 0:02:02.1]} 37. Ne3 {[%clk
0:00:57.4]} 37... Kd6 {[%clk 0:01:57.3]} 38. Nxd5 {[%clk 0:00:54]} 38... Kxd5
{[%clk 0:01:51.4]} 39. Rd2# {[%clk 0:00:53]} 1-0

[Event "*** SCC Grand Prix: Titled Tuesday Blitz"]
[Site "Chess.com"]
[Date "2020.09.08"]
[Round "9"]
[White "13MiRacLe"]
[Black "PowerThinking2650"]
[Result "1-0"]
[WhiteElo "2591"]
[BlackElo "2394"]
[TimeControl "180+1"]
[EndTime "11:44:52 PDT"]
[Termination "13MiRacLe won by resignation"]

1. e4 {[%clk 0:02:59.9]} 1... e5 {[%clk 0:02:59.5]} 2. Nf3 {[%clk 0:02:59.7]}
2... Nc6 {[%clk 0:02:59]} 3. Bb5 {[%clk 0:03:00.2]} 3... a6 {[%clk 0:02:58.4]}
4. Ba4 {[%clk 0:03:00.6]} 4... Nf6 {[%clk 0:02:58.3]} 5. O-O {[%clk 0:03:01.1]}
5... Be7 {[%clk 0:02:58.6]} 6. d3 {[%clk 0:03:01.6]} 6... b5 {[%clk 0:02:58.2]}
7. Bb3 {[%clk 0:03:01.8]} 7... d6 {[%clk 0:02:58.9]} 8. a3 {[%clk 0:03:01.8]}
8... O-O {[%clk 0:02:58.2]} 9. Nc3 {[%clk 0:03:01.8]} 9... Bg4 {[%clk
0:02:57.3]} 10. Be3 {[%clk 0:03:01.2]} 10... Nd4 {[%clk 0:02:57.7]} 11. Bxd4
{[%clk 0:03:01.1]} 11... exd4 {[%clk 0:02:58.6]} 12. Nd5 {[%clk 0:03:01.5]}
12... c5 {[%clk 0:02:57.1]} 13. h3 {[%clk 0:02:47.6]} 13... Be6 {[%clk
0:02:55.6]} 14. Nxf6+ {[%clk 0:02:46.6]} 14... Bxf6 {[%clk 0:02:56.5]} 15. Bxe6
{[%clk 0:02:46.2]} 15... fxe6 {[%clk 0:02:57.4]} 16. Nd2 {[%clk 0:02:38.2]}
16... e5 {[%clk 0:02:55.5]} 17. Qg4 {[%clk 0:02:30.9]} 17... Bg5 {[%clk
0:02:54.2]} 18. Nf3 {[%clk 0:02:21.3]} 18... Bh6 {[%clk 0:02:45.7]} 19. a4
{[%clk 0:02:21.1]} 19... Qc8 {[%clk 0:02:23.7]} 20. axb5 {[%clk 0:01:59.3]}
20... Qxg4 {[%clk 0:02:20.9]} 21. hxg4 {[%clk 0:01:58.9]} 21... axb5 {[%clk
0:02:15.7]} 22. Rxa8 {[%clk 0:01:54.5]} 22... Rxa8 {[%clk 0:02:15.7]} 23. g5
{[%clk 0:01:55.2]} 23... Ra2 {[%clk 0:02:15.9]} 24. Rb1 {[%clk 0:01:54.3]} 24...
Bxg5 {[%clk 0:01:58.6]} 25. Nxg5 {[%clk 0:01:53.8]} 25... h6 {[%clk 0:01:57.3]}
26. Nf3 {[%clk 0:01:52.8]} 26... g5 {[%clk 0:01:56.6]} 27. g4 {[%clk 0:01:47.1]}
27... Kf7 {[%clk 0:01:56.2]} 28. Kf1 {[%clk 0:01:44.4]} 28... Ke6 {[%clk
0:01:56.6]} 29. Ke2 {[%clk 0:01:44.6]} 29... d5 {[%clk 0:01:57]} 30. Nd2 {[%clk
0:01:44.4]} 30... Kd6 {[%clk 0:01:52.9]} 31. Rh1 {[%clk 0:01:27.5]} 31... Rxb2
{[%clk 0:01:50.1]} 32. Rxh6+ {[%clk 0:01:27.2]} 32... Kd7 {[%clk 0:01:50.2]} 33.
Kd1 {[%clk 0:01:20.9]} 33... c4 {[%clk 0:01:45.7]} 34. exd5 {[%clk 0:01:13.9]}
34... c3 {[%clk 0:01:41.6]} 35. Nb3 {[%clk 0:01:07.2]} 35... Rb1+ {[%clk
0:01:40.9]} 36. Ke2 {[%clk 0:01:07.9]} 36... Rg1 {[%clk 0:01:36.9]} 37. Nc5+
{[%clk 0:01:03.6]} 37... Ke8 {[%clk 0:01:36.5]} 38. d6 {[%clk 0:01:01.7]} 38...
Rc1 {[%clk 0:01:35.9]} 39. d7+ {[%clk 0:00:59.5]} 39... Ke7 {[%clk 0:01:36.2]}
40. Rh7+ {[%clk 0:00:59.5]} 1-0

[Event "*** SCC Grand Prix: Titled Tuesday Blitz"]
[Site "Chess.com"]
[Date "2020.09.08"]
[Round "9"]
[White "dosto07"]
[Black "lelya96"]
[Result "1-0"]
[WhiteElo "2296"]
[BlackElo "2154"]
[TimeControl "180+1"]
[EndTime "11:44:58 PDT"]
[Termination "dosto07 won by checkmate"]

1. e4 {[%clk 0:03:00.9]} 1... e5 {[%clk 0:02:54.9]} 2. Nf3 {[%clk 0:03:00.5]}
2... Nc6 {[%clk 0:02:54.3]} 3. Bb5 {[%clk 0:03:00]} 3... a6 {[%clk 0:02:53.8]}
4. Ba4 {[%clk 0:02:59.8]} 4... Nf6 {[%clk 0:02:54]} 5. O-O {[%clk 0:02:59.2]}
5... b5 {[%clk 0:02:54.6]} 6. Bb3 {[%clk 0:02:58.3]} 6... Bc5 {[%clk 0:02:55.3]}
7. c3 {[%clk 0:02:54.9]} 7... d6 {[%clk 0:02:54.7]} 8. d4 {[%clk 0:02:53.4]}
8... Bb6 {[%clk 0:02:54.1]} 9. a4 {[%clk 0:02:51.1]} 9... Rb8 {[%clk 0:02:52.7]}
10. h3 {[%clk 0:02:39.5]} 10... O-O {[%clk 0:02:51.1]} 11. Re1 {[%clk
0:02:30.2]} 11... Re8 {[%clk 0:02:48.7]} 12. Bg5 {[%clk 0:02:27.9]} 12... h6
{[%clk 0:02:47.4]} 13. Bh4 {[%clk 0:02:19.2]} 13... g5 {[%clk 0:02:22.1]} 14.
Nxg5 {[%clk 0:02:09.2]} 14... hxg5 {[%clk 0:02:16.8]} 15. Bxg5 {[%clk
0:02:09.2]} 15... exd4 {[%clk 0:02:10.6]} 16. axb5 {[%clk 0:01:55.3]} 16... axb5
{[%clk 0:02:03.1]} 17. Qf3 {[%clk 0:01:51.5]} 17... Ne5 {[%clk 0:01:51.9]} 18.
Qg3 {[%clk 0:01:49.4]} 18... Ng6 {[%clk 0:01:48.4]} 19. cxd4 {[%clk 0:01:42.9]}
19... Bxd4 {[%clk 0:01:46.4]} 20. Nc3 {[%clk 0:01:42.4]} 20... Re5 {[%clk
0:01:38]} 21. h4 {[%clk 0:01:28.8]} 21... Nh5 {[%clk 0:01:30.7]} 22. Qf3 {[%clk
0:01:27.1]} 22... Rxg5 {[%clk 0:00:31.7]} 23. Qxf7+ {[%clk 0:01:23.9]} 23... Kh8
{[%clk 0:00:30.2]} 24. hxg5 {[%clk 0:01:24]} 24... Qxg5 {[%clk 0:00:30.1]} 25.
Qg8# {[%clk 0:01:18.9]} 1-0

[Event "*** SCC Grand Prix: Titled Tuesday Blitz"]
[Site "Chess.com"]
[Date "2020.09.08"]
[Round "9"]
[White "Caracternin123"]
[Black "ShahMatKanal"]
[Result "1-0"]
[WhiteElo "2713"]
[BlackElo "2551"]
[TimeControl "180+1"]
[EndTime "11:45:03 PDT"]
[Termination "Caracternin123 won by resignation"]

1. d4 {[%clk 0:03:00.9]} 1... d5 {[%clk 0:02:58.9]} 2. Bf4 {[%clk 0:03:00.5]}
2... c5 {[%clk 0:02:57.3]} 3. e3 {[%clk 0:03:01.1]} 3... cxd4 {[%clk 0:02:57.5]}
4. exd4 {[%clk 0:03:01.3]} 4... Nc6 {[%clk 0:02:58.4]} 5. c3 {[%clk 0:03:01.8]}
5... Nf6 {[%clk 0:02:55.4]} 6. Nd2 {[%clk 0:03:01.9]} 6... g6 {[%clk 0:02:54.7]}
7. Ngf3 {[%clk 0:03:02.3]} 7... Bg7 {[%clk 0:02:55.2]} 8. Be2 {[%clk 0:03:02.9]}
8... O-O {[%clk 0:02:55.4]} 9. O-O {[%clk 0:03:03.4]} 9... Bg4 {[%clk
0:02:54.3]} 10. h3 {[%clk 0:03:03.6]} 10... Bxf3 {[%clk 0:02:53.7]} 11. Nxf3
{[%clk 0:03:03.1]} 11... a6 {[%clk 0:02:48.2]} 12. a4 {[%clk 0:03:02.5]} 12...
Rc8 {[%clk 0:02:41.6]} 13. Re1 {[%clk 0:02:58.4]} 13... e6 {[%clk 0:02:33.8]}
14. Bd3 {[%clk 0:02:57.5]} 14... Na5 {[%clk 0:02:30]} 15. Nd2 {[%clk 0:02:47]}
15... Qb6 {[%clk 0:02:24]} 16. b4 {[%clk 0:02:44.4]} 16... Rxc3 {[%clk
0:02:07.4]} 17. bxa5 {[%clk 0:02:40.6]} 17... Qxd4 {[%clk 0:02:07]} 18. Be5
{[%clk 0:02:37.6]} 18... Qxd3 {[%clk 0:02:07.2]} 19. Re3 {[%clk 0:02:36.2]}
19... Qxe3 {[%clk 0:01:30.2]} 20. fxe3 {[%clk 0:02:34.5]} 20... Rxe3 {[%clk
0:01:31.1]} 21. Nf3 {[%clk 0:02:22.8]} 21... Re4 {[%clk 0:01:00.9]} 22. Rb1
{[%clk 0:02:18.1]} 22... Nd7 {[%clk 0:00:52.8]} 23. Bxg7 {[%clk 0:02:14.3]}
23... Kxg7 {[%clk 0:00:53.7]} 24. Rxb7 {[%clk 0:01:51.9]} 24... Nc5 {[%clk
0:00:52.2]} 25. Rc7 {[%clk 0:01:52]} 25... Nxa4 {[%clk 0:00:48.3]} 26. Ng5
{[%clk 0:01:50.8]} 26... Nb2 {[%clk 0:00:20.4]} 27. Qd2 {[%clk 0:01:49.9]} 27...
Nc4 {[%clk 0:00:13.6]} 28. Qc3+ {[%clk 0:01:50]} 28... Re5 {[%clk 0:00:10.9]}
29. Nf3 {[%clk 0:01:47.9]} 1-0

[Event "*** SCC Grand Prix: Titled Tuesday Blitz"]
[Site "Chess.com"]
[Date "2020.09.08"]
[Round "9"]
[White "natelleka"]
[Black "Sofiia_Hryzlova"]
[Result "0-1"]
[WhiteElo "2112"]
[BlackElo "2271"]
[TimeControl "180+1"]
[EndTime "11:45:05 PDT"]
[Termination "Sofiia_Hryzlova won on time"]

1. e4 {[%clk 0:03:00.9]} 1... e6 {[%clk 0:02:49.4]} 2. d4 {[%clk 0:02:59.1]}
2... d5 {[%clk 0:02:49.6]} 3. Nc3 {[%clk 0:02:59.5]} 3... Nc6 {[%clk 0:02:47.4]}
4. Nf3 {[%clk 0:02:54.8]} 4... Nf6 {[%clk 0:02:44.7]} 5. e5 {[%clk 0:02:53]}
5... Ne4 {[%clk 0:02:45]} 6. Bd3 {[%clk 0:02:52.9]} 6... Bb4 {[%clk 0:02:43.6]}
7. Bd2 {[%clk 0:02:39.3]} 7... Nxd2 {[%clk 0:02:42.8]} 8. Qxd2 {[%clk
0:02:37.9]} 8... f6 {[%clk 0:02:42.8]} 9. exf6 {[%clk 0:02:20.7]} 9... Qxf6
{[%clk 0:02:42.1]} 10. O-O {[%clk 0:02:17.1]} 10... O-O {[%clk 0:02:36.5]} 11.
Qe3 {[%clk 0:02:13.3]} 11... h6 {[%clk 0:02:31.5]} 12. Ne2 {[%clk 0:01:56.2]}
12... Bd6 {[%clk 0:02:28.3]} 13. c3 {[%clk 0:01:50]} 13... Bd7 {[%clk
0:02:26.1]} 14. Ng3 {[%clk 0:01:36.1]} 14... Rae8 {[%clk 0:02:12.2]} 15. Rfe1
{[%clk 0:01:26.6]} 15... e5 {[%clk 0:02:09.1]} 16. dxe5 {[%clk 0:01:22.3]} 16...
Nxe5 {[%clk 0:02:08.7]} 17. Nxe5 {[%clk 0:01:19.5]} 17... Rxe5 {[%clk 0:02:08]}
18. Qd2 {[%clk 0:01:15.2]} 18... Bc5 {[%clk 0:02:01.6]} 19. Rf1 {[%clk 0:01:01]}
19... h5 {[%clk 0:02:01.4]} 20. c4 {[%clk 0:00:24.3]} 20... h4 {[%clk
0:01:58.6]} 21. Nh1 {[%clk 0:00:23.6]} 21... Rg5 {[%clk 0:01:44.1]} 22. g3
{[%clk 0:00:18.6]} 22... Bh3 {[%clk 0:01:41.3]} 23. cxd5 {[%clk 0:00:17.2]}
23... Qf3 {[%clk 0:01:39.3]} 0-1

[Event "*** SCC Grand Prix: Titled Tuesday Blitz"]
[Site "Chess.com"]
[Date "2020.09.08"]
[Round "9"]
[White "giantslayer83"]
[Black "ChessPromotionAlex"]
[Result "1-0"]
[WhiteElo "2701"]
[BlackElo "2512"]
[TimeControl "180+1"]
[EndTime "11:45:14 PDT"]
[Termination "giantslayer83 won by resignation"]

1. d4 {[%clk 0:02:53.1]} 1... Nf6 {[%clk 0:03:00]} 2. Bg5 {[%clk 0:02:52.4]}
2... Ne4 {[%clk 0:02:58]} 3. Bf4 {[%clk 0:02:52.3]} 3... c5 {[%clk 0:02:58.2]}
4. f3 {[%clk 0:02:52.3]} 4... Qa5+ {[%clk 0:02:58.4]} 5. c3 {[%clk 0:02:52.5]}
5... Nf6 {[%clk 0:02:58.7]} 6. d5 {[%clk 0:02:52.7]} 6... g6 {[%clk 0:02:45.9]}
7. e4 {[%clk 0:02:52]} 7... d6 {[%clk 0:02:46.2]} 8. Nd2 {[%clk 0:02:52.1]} 8...
Bg7 {[%clk 0:02:45.2]} 9. a4 {[%clk 0:02:51.6]} 9... O-O {[%clk 0:02:44]} 10.
Nc4 {[%clk 0:02:49.5]} 10... Qd8 {[%clk 0:02:42.6]} 11. Qd2 {[%clk 0:02:49.8]}
11... b6 {[%clk 0:02:39.3]} 12. Ne2 {[%clk 0:02:42.2]} 12... Ba6 {[%clk
0:02:37.1]} 13. Ng3 {[%clk 0:02:42.1]} 13... Nbd7 {[%clk 0:02:16.2]} 14. Bh6
{[%clk 0:02:41.6]} 14... Bxc4 {[%clk 0:02:13.5]} 15. Bxc4 {[%clk 0:02:41.1]}
15... a6 {[%clk 0:02:12.4]} 16. h4 {[%clk 0:02:39.5]} 16... Ne5 {[%clk
0:02:01.6]} 17. Be2 {[%clk 0:02:39.2]} 17... b5 {[%clk 0:02:01.7]} 18. h5 {[%clk
0:02:39]} 18... e6 {[%clk 0:01:41.8]} 19. hxg6 {[%clk 0:02:30.9]} 19... fxg6
{[%clk 0:01:36.1]} 20. Bxg7 {[%clk 0:02:26.6]} 20... Kxg7 {[%clk 0:01:35.6]} 21.
dxe6 {[%clk 0:02:25.5]} 21... Qe7 {[%clk 0:01:30.1]} 22. f4 {[%clk 0:02:22.4]}
22... Nc4 {[%clk 0:01:08.4]} 23. Bxc4 {[%clk 0:02:21.5]} 23... bxc4 {[%clk
0:01:09.3]} 24. f5 {[%clk 0:02:21.5]} 24... g5 {[%clk 0:01:04.6]} 25. Qxg5+
{[%clk 0:02:18.9]} 25... Kh8 {[%clk 0:01:05]} 26. Nh5 {[%clk 0:02:09.8]} 26...
Rab8 {[%clk 0:00:58.1]} 27. Nxf6 {[%clk 0:01:50.6]} 27... Rxf6 {[%clk
0:00:53.9]} 28. O-O-O {[%clk 0:01:47.3]} 28... Rxe6 {[%clk 0:00:45.5]} 29. Rxh7+
{[%clk 0:01:45.4]} 29... Qxh7 {[%clk 0:00:44.8]} 30. fxe6 {[%clk 0:01:45.5]}
30... Rf8 {[%clk 0:00:33]} 31. e7 {[%clk 0:01:34.3]} 31... Re8 {[%clk 0:00:29]}
32. Rxd6 {[%clk 0:01:34.3]} 1-0